[Event "I Torneo de Maestras 2019"]
[Site "Corralejo"]
[Date "2019.09.27"]
[Round "9.3"]
[White "Terbe, Julianna"]
[Black "Sosa Suarez, Carla Cristina"]
[Result "1-0"]
[ECO "E05"]
[WhiteElo "2298"]
[BlackElo "2069"]
[Annotator "NA"]
[PlyCount "83"]
[EventDate "2019.09.21"]
[EventType "tourn"]
[EventCountry "ESP"]
[SourceTitle "playchess.com"]
[Source "ChessBase"]
[SourceQuality "1"]
[TimeControl "5400+30"]

1. d4 {[%emt 0:00:00]} d5 {[%emt 0:00:00]} 2. Nf3 {[%emt 0:00:00]} Nf6 {[%emt 0:01:07]} 3. g3 {[%emt 0:00:04]} e6 {[%emt 0:00:43]} 4. Bg2 {[%emt 0:00:07]} Be7 {[%emt 0:00:46]} 5. O-O {[%emt 0:00:07]} O-O {[%emt 0:00:03]} 6. c4 {[%emt 0:00:06]} dxc4 {[%emt 0:00:27]} 7. Qc2 {[%emt 0:00:07]} b5 {[%emt 0:00:53]} 8. a4 {[%emt 0:05:05]} b4 {[%emt 0:00:52]} 9. Qxc4 {[%emt 0:03:07]} Ba6 {[%emt 0:05:50]} 10. Qc2 {[%emt 0:00:09]} Nbd7 {[%emt 0:03:22]} 11. Ne5 {[%emt 0:03:16]} Nxe5 {[%emt 0:04:16]} 12. Bxa8 {[%emt 0:05:03]} Qxd4 {[%emt 0:00:58]} 13. Bg2 {[%emt 0:01:50]} Nd5 {[%emt 0:06:10]} 14. Rd1 {[%emt 0:06:00]} Qc4 {[%emt 0:09:46]} 15. Qxc4 {[%emt 0:02:38]} Bxc4 {[%emt 0:00:05]} 16. Nd2 {[%emt 0:00:19]} Ba6 {[%emt 0:01:40]} 17. Bf1 {[%emt 0:03:52]} c5 {[%emt 0:10:48]} 18. e4 {[%emt 0:04:09]} Bxf1 {[%emt 0:01:24]} 19. Kxf1 {[%emt 0:00:06]} Nf6 {[%emt 0:01:57]} 20. b3 {[%emt 0:02:44]} Rd8 {[%emt 0:01:49]} 21. Ke2 {[%emt 0:00:28]} Nc6 {[%emt 0:03:40]} 22. Bb2 {[%emt 0:02:45]} Na5 {[%emt 0:03:36]} 23. f3 {[%emt 0:02:50]} Rxd2+ {[%emt 0:05:29]} 24. Kxd2 {[%emt 0:04:13]} Nxb3+ {[%emt 0:00:06]} 25. Kd3 {[%emt 0:00:06]} Nxa1 {[%emt 0:00:39]} 26. Bxa1 {[%emt 0:00:05]} Nd7 {[%emt 0:03:11]} 27. Kc4 {[%emt 0:08:20]} Nb6+ {[%emt 0:01:50]} 28. Kb5 {[%emt 0:00:07]} f6 {[%emt 0:04:29]} 29. a5 {[%emt 0:08:54]} Nc8 {[%emt 0:00:06]} 30. Kc6 {[%emt 0:00:23]} Bf8 {[%emt 0:07:05]} 31. Rd8 {[%emt 0:02:47]} Ne7+ {[%emt 0:01:24]} 32. Kxc5 {[%emt 0:00:09]} Kf7 {[%emt 0:01:17]} 33. Kb5 {[%emt 0:01:04]} b3 {[%emt 0:01:11]} 34. Rd3 {[%emt 0:01:09]} Nc8 {[%emt 0:00:15]} 35. Rxb3 {[%emt 0:00:37]} Bd6 {[%emt 0:01:14]} 36. Bd4 {[%emt 0:00:44]} Ke7 {[%emt 0:00:21]} 37. Ka6 {[%emt 0:00:20]} Kd7 {[%emt 0:00:37]} 38. Bxa7 {[%emt 0:01:16]} Kc6 {[%emt 0:01:12]} 39. Rc3+ {[%emt 0:02:03]} Kd7 {[%emt 0:00:17]} 40. Kb7 {[%emt 0:00:34]} Nxa7 {[%emt 0:00:20]} 41. Kxa7 {[%emt 0:00:05]} Be5 {[%emt 0:01:02]} 42. Rc4 {[%emt 0:00:14]} 1-0

[Event "I Torneo de Maestras 2019"]
[Site "Corralejo"]
[Date "2019.09.27"]
[Round "9.5"]
[White "Rodriguez Redondo, Adhara"]
[Black "Thomas, Anysia"]
[Result "1-0"]
[ECO "B39"]
[WhiteElo "2065"]
[BlackElo "2112"]
[Annotator "NA"]
[PlyCount "133"]
[EventDate "2019.09.21"]
[EventType "tourn"]
[EventCountry "ESP"]
[SourceTitle "playchess.com"]
[Source "ChessBase"]
[SourceQuality "1"]
[TimeControl "5400+30"]

1. e4 {[%emt 0:00:00]} c5 {[%emt 0:00:00]} 2. Nf3 {[%emt 0:00:00]} Nc6 {[%emt 0:00:00]} 3. d4 {[%emt 0:00:00]} cxd4 {[%emt 0:00:00]} 4. Nxd4 {[%emt 0:00:02]} g6 {[%emt 0:00:03]} 5. c4 {[%emt 0:00:04]} Bg7 {[%emt 0:00:17]} 6. Be3 {[%emt 0:00:07]} Nf6 {[%emt 0:00:06]} 7. Nc3 {[%emt 0:00:04]} Ng4 {[%emt 0:00:43]} 8. Qxg4 {[%emt 0:00:07]} Nxd4 {[%emt 0:00:04]} 9. Qd1 {[%emt 0:00:06]} e5 {[%emt 0:00:05]} 10. Bd3 {[%emt 0:00:39]} O-O {[%emt 0:00:35]} 11. O-O {[%emt 0:01:38]} d6 {[%emt 0:00:18]} 12. Rc1 {[%emt 0:00:54]} Be6 {[%emt 0:01:05]} 13. b3 {[%emt 0:00:36]} a6 {[%emt 0:00:24]} 14. Qd2 {[%emt 0:02:07]} Rb8 {[%emt 0:04:11]} 15. Rfd1 {[%emt 0:01:48]} b5 {[%emt 0:11:32]} 16. cxb5 {[%emt 0:11:17]} axb5 {[%emt 0:00:29]} 17. Bxd4 {[%emt 0:03:04]} exd4 {[%emt 0:00:04]} 18. Nxb5 {[%emt 0:01:40]} d5 {[%emt 0:07:57]} 19. Nc7 {[%emt 0:12:19]} dxe4 {[%emt 0:01:01]} 20. Nxe6 {[%emt 0:00:32]} fxe6 {[%emt 0:00:04]} 21. Bxe4 {[%emt 0:00:10]} Qh4 {[%emt 0:01:14]} 22. Qe2 {[%emt 0:03:40]} Bh6 {[%emt 0:04:08]} 23. g3 {[%emt 0:07:39]} Qf6 {[%emt 0:07:25]} 24. Rc6 {[%emt 0:05:15]} Rbc8 {[%emt 0:05:39]} 25. Rxc8 {[%emt 0:01:46]} Rxc8 {[%emt 0:00:03]} 26. a4 {[%emt 0:01:01]} Bf8 {[%emt 0:06:21]} 27. Qa6 {[%emt 0:04:39]} Rd8 {[%emt 0:05:45]} 28. Qb6 {[%emt 0:03:41]} Rd6 {[%emt 0:05:44]} 29. Qb5 {[%emt 0:02:39]} Qd8 {[%emt 0:05:37]} 30. a5 {[%emt 0:02:05]} Qc8 {[%emt 0:00:32]} 31. Qa4 {[%emt 0:10:07]} Qd7 {[%emt 0:09:47]} 32. Qc4 {[%emt 0:01:15]} Qa7 {[%emt 0:02:50]} 33. b4 {[%emt 0:01:16]} Kg7 {[%emt 0:03:29]} 34. Rd3 {[%emt 0:04:22]} Be7 {[%emt 0:03:09]} 35. Ra3 {[%emt 0:04:56]} e5 {[%emt 0:01:38]} 36. a6 {[%emt 0:02:09]} Rf6 {[%emt 0:01:16]} 37. Ra2 {[%emt 0:01:41]} h5 {[%emt 0:06:14]} 38. Qb5 {[%emt 0:02:35]} Bd6 {[%emt 0:02:54]} 39. Bd5 {[%emt 0:03:03]} Bb8 {[%emt 0:04:02]} 40. h4 {[%emt 0:02:49]} Rf8 {[%emt 0:01:17]} 41. Rc2 {[%emt 0:01:28]} Kh6 {[%emt 0:01:44]} 42. Be4 {[%emt 0:00:56]} Qf7 {[%emt 0:00:36]} 43. Qd3 {[%emt 0:02:20]} Ba7 {[%emt 0:00:35]} 44. Rc6 {[%emt 0:00:17]} Qxf2+ {[%emt 0:00:07]} 45. Kh1 {[%emt 0:00:32]} Qe1+ {[%emt 0:00:21]} 46. Kh2 {[%emt 0:00:42]} Qf2+ {[%emt 0:00:17]} 47. Bg2 {[%emt 0:00:32]} Rf6 {[%emt 0:00:27]} 48. Rc2 {[%emt 0:01:37]} Qe1 {[%emt 0:01:01]} 49. b5 {[%emt 0:01:03]} Qa5 {[%emt 0:00:37]} 50. Qb3 {[%emt 0:00:53]} Qd8 {[%emt 0:00:16]} 51. Be4 {[%emt 0:00:38]} Bb6 {[%emt 0:00:23]} 52. Qc4 {[%emt 0:00:21]} Qf8 {[%emt 0:00:19]} 53. Bg2 {[%emt 0:00:38]} Rf7 {[%emt 0:00:51]} 54. Re2 {[%emt 0:00:34]} Qe7 {[%emt 0:00:30]} 55. Qd5 {[%emt 0:00:27]} Rf5 {[%emt 0:00:37]} 56. Bh3 {[%emt 0:00:24]} d3 {[%emt 0:00:29]} 57. Qxd3 {[%emt 0:00:35]} Qc5 {[%emt 0:00:30]} 58. Qd2+ {[%emt 0:00:26]} Rf4 {[%emt 0:00:18]} 59. Rg2 {[%emt 0:00:39]} Ba5 {[%emt 0:00:47]} 60. Qxa5 {[%emt 0:00:22]} Rf1 {[%emt 0:00:31]} 61. Qd2+ {[%emt 0:00:24]} Kg7 {[%emt 0:00:11]} 62. Qd7+ {[%emt 0:00:28]} Kh6 {[%emt 0:00:28]} 63. Qd8 {[%emt 0:00:30]} Kg7 {[%emt 0:00:42]} 64. Qg5 {[%emt 0:00:47]} Qxb5 {[%emt 0:00:40]} 65. Rd2 {[%emt 0:00:26]} Qxa6 {[%emt 0:00:38]} 66. Bxf1 {[%emt 0:00:18]} Qxf1 {[%emt 0:00:13]} 67. Qxe5+ {[%emt 0:00:06]} 1-0